fUSD/lending_fUSD_20240729
["ID","MTS","AMOUNT","RATE_DAILY","PERIOD"]
[333617425,1722287445781,-500.0,0.00010999,2]
[333617426,1722287445790,-500.0,0.00010999,2]
[333617427,1722287445799,-500.0,0.00010999,2]
[333617429,1722287445808,-500.0,0.00010999,2]
[333617431,1722287445817,-500.0,0.00010999,2]
[333617432,1722287445826,-500.0,0.00010999,2]
[333617433,1722287445835,-257.68,0.00010999,2]
[333617434,1722287445844,-500.0,0.00010999,2]
[333617435,1722287445853,-500.0,0.00010999,2]
[333617436,1722287445863,-500.0,0.00010999,2]
[333617437,1722287445872,-537.77047322,0.00010999,2]
[333617438,1722287445881,-500.0,0.00010999,2]
[333617439,1722287445890,-160.42,0.00010999,2]
[333617440,1722287445899,-500.0,0.00010999,2]
[333617441,1722287445908,-500.0,0.00010999,2]
[333617443,1722287445917,-182.38,0.00010999,2]
[333617444,1722287445926,-500.0,0.00010999,2]
[333617445,1722287445936,-500.0,0.00010999,2]
[333617446,1722287445945,-500.0,0.00010999,2]
[333617447,1722287445954,-247.42858436,0.00010999,2]
[333617448,1722287445963,-500.0,0.00010999,2]
[333617449,1722287445972,-500.0,0.00010999,2]
[333617450,1722287445982,-500.0,0.00010999,2]
[333617451,1722287445991,-500.0,0.00010999,2]
[333617452,1722287446000,-500.0,0.00010999,2]
[333617453,1722287446009,-500.0,0.00010999,2]
[333617454,1722287446019,-500.0,0.00010999,2]
[333617455,1722287446028,-594.68,0.00010999,2]
[333617456,1722287446037,-500.0,0.00010999,2]
[333617457,1722287446047,-593.31337805,0.00010999,2]
[333617458,1722287446056,-500.0,0.00010999,2]
[333617459,1722287446066,-562.80911314,0.00010999,2]
[333617460,1722287446075,-598.57,0.00010999,2]
[333617461,1722287446085,-500.0,0.00010999,2]
[333617462,1722287446094,-500.0,0.00010999,2]
[333617463,1722287446103,-573.6,0.00010999,2]
[333617464,1722287446113,-500.0,0.00010999,2]
[333617465,1722287446122,-1640.25,0.00010999,2]
[333617466,1722287446131,-1640.25,0.00010999,2]
[333617467,1722287446141,-1640.25,0.00010999,2]
[333617468,1722287446150,-1640.25,0.00010999,2]
[333617469,1722287446160,-1640.25,0.00010999,2]
[333617470,1722287446170,-568.8,0.00010999,2]
[333617471,1722287446180,-568.8,0.00010999,2]
[333617472,1722287446189,-1640.25,0.00010999,2]
[333617473,1722287446199,-226.5515151,0.00010999,2]
[333617474,1722287446208,-1640.25,0.00010999,2]
[333617475,1722287446218,-1640.25,0.00010999,2]
[333617476,1722287446227,-1640.25,0.00010999,2]
[333617477,1722287446236,-500.0,0.00010999,2]
[333617478,1722287446245,-1640.25,0.00010999,2]
[333617479,1722287446254,-574.65564846,0.00010999,2]
[333617480,1722287446264,-1640.25,0.00010999,2]
[333617481,1722287446273,-1640.25,0.00010999,2]
[333617482,1722287446282,-1640.25,0.00010999,2]
[333617483,1722287446291,-1640.25,0.00010999,2]
[333617484,1722287446300,-1640.25,0.00010999,2]
[333617485,1722287446309,-568.8,0.00010999,2]
[333617486,1722287446319,-1640.25,0.00010999,2]
[333617487,1722287446329,-1640.25,0.00010999,2]
[333617488,1722287446339,-1640.25,0.00010999,2]
[333617489,1722287446348,-1640.25,0.00010999,2]
[333617490,1722287446358,-500.0,0.00010999,2]
[333617491,1722287446369,-362.31,0.00010999,2]
[333617492,1722287446378,-1640.25900268,0.00010999,2]
[333617493,1722287446388,-568.8,0.00010999,2]
[333617494,1722287446398,-500.0,0.00010999,2]
[333617495,1722287446407,-500.0,0.00010999,2]
[333617496,1722287446417,-500.0,0.00010999,2]
[333617497,1722287446427,-500.0,0.00010999,2]
[333617498,1722287446436,-568.8,0.00010999,2]
[333617499,1722287446446,-500.0,0.00010999,2]
[333617500,1722287446456,-568.8,0.00010999,2]
[333617501,1722287446465,-500.0,0.00010999,2]
[333617502,1722287446475,-500.0,0.00010999,2]
[333617503,1722287446484,-568.8,0.00010999,2]
[333617504,1722287446494,-500.0,0.00010999,2]
[333617508,1722287446545,-568.8,0.00010999,2]
[333617510,1722287446554,-568.8,0.00010999,2]
[333617511,1722287446563,-500.0,0.00010999,2]
[333617512,1722287446572,-568.8,0.00010999,2]
[333617513,1722287446581,-568.8,0.00010999,2]
[333617514,1722287446590,-500.0,0.00010999,2]
[333617515,1722287446599,-568.8,0.00010999,2]
[333617516,1722287446609,-500.0,0.00010999,2]
[333617517,1722287446618,-568.8,0.00010999,2]
[333617518,1722287446627,-500.0,0.00010999,2]
[333617519,1722287446637,-500.0,0.00010999,2]
[333617520,1722287446646,-568.8,0.00010999,2]
[333617522,1722287446655,-635.80034724,0.00010999,2]
[333617524,1722287446665,-568.8,0.00010999,2]
[333617526,1722287446674,-1454.2,0.00010999,2]
[333617528,1722287446683,-568.8,0.00010999,2]
[333617530,1722287446696,-1454.2,0.00010999,2]
[333617532,1722287446705,-568.8,0.00010999,2]
[333617534,1722287446715,-1454.2,0.00010999,2]
[333617536,1722287446724,-500.0,0.00010999,2]
[333617538,1722287446734,-568.8,0.00010999,2]
[333617540,1722287446743,-348.68,0.00010999,2]
[333617542,1722287446753,-568.8,0.00010999,2]
[333617544,1722287446762,-568.94,0.00010999,2]
[333617546,1722287446774,-1454.2,0.00010999,2]
[333617548,1722287446783,-1454.2,0.00010999,2]
[333617550,1722287446792,-1454.2,0.00010999,2]
[333617552,1722287446801,-1454.2,0.00010999,2]
[333617554,1722287446811,-1454.2,0.00010999,2]
[333617556,1722287446821,-1454.2,0.00010999,2]
[333617558,1722287446830,-1454.2,0.00010999,2]
[333617560,1722287446839,-1454.2,0.00010999,2]
[333617562,1722287446848,-1454.2,0.00010999,2]
[333617563,1722287446858,-1454.2,0.00010999,2]
[333617565,1722287446868,-500.0,0.00010999,2]
[333617567,1722287446877,-1454.2,0.00010999,2]
[333617569,1722287446886,-1454.2,0.00010999,2]
[333617571,1722287446895,-1454.2,0.00010999,2]
[333617573,1722287446904,-1454.2,0.00010999,2]
[333617575,1722287446913,-1454.2,0.00010999,2]
[333617577,1722287446922,-1454.2,0.00010999,2]
[333617579,1722287446932,-1454.36580368,0.00010999,2]
[333617581,1722287446941,-500.0,0.00010999,2]
[333617583,1722287446950,-733.15,0.00010999,2]
[333617584,1722287446959,-500.0,0.00010999,2]
[333617586,1722287446968,-639.54,0.00010999,2]
[333617588,1722287446977,-500.0,0.00010999,2]
[333617590,1722287446986,-733.15,0.00010999,2]
[333617592,1722287446995,-639.54,0.00010999,2]
[333617594,1722287447004,-500.0,0.00010999,2]
[333617596,1722287447015,-733.15,0.00010999,2]
[333617598,1722287447024,-639.54,0.00010999,2]
[333617600,1722287447033,-500.0,0.00010999,2]
[333617602,1722287447042,-733.15,0.00010999,2]
[333617604,1722287447051,-639.54,0.00010999,2]
[333617606,1722287447060,-177.21124976,0.00010999,2]
[333617608,1722287447072,-733.15,0.00010999,2]
[333617610,1722287447081,-639.54,0.00010999,2]
[333617612,1722287447090,-368.14026721,0.00010999,2]
[333617614,1722287447102,-733.15,0.00010999,2]
[333617616,1722287447112,-639.54,0.00010999,2]
[333617618,1722287447121,-639.54,0.00010999,2]
[333617620,1722287447130,-639.54,0.00010999,2]
[333617622,1722287447138,-639.54,0.00010999,2]
[333617624,1722287447148,-639.54,0.00010999,2]
[333617626,1722287447157,-733.15,0.00010999,2]
[333617628,1722287447166,-733.15,0.00010999,2]
[333617630,1722287447175,-639.54,0.00010999,2]
[333617632,1722287447184,-733.15,0.00010999,2]
[333617633,1722287447194,-639.54,0.00010999,2]
[333617635,1722287447203,-733.15,0.00010999,2]
[333617636,1722287447212,-639.54,0.00010999,2]
[333617637,1722287447221,-639.54,0.00010999,2]
[333617638,1722287447231,-733.15,0.00010999,2]
[333617639,1722287447241,-639.54,0.00010999,2]
[333617640,1722287447250,-733.15,0.00010999,2]
[333617641,1722287447259,-639.54,0.00010999,2]
[333617642,1722287447268,-733.15,0.00010999,2]
[333617643,1722287447278,-733.15,0.00010999,2]
[333617644,1722287447287,-639.54,0.00010999,2]
[333617645,1722287447296,-733.15,0.00010999,2]
[333617646,1722287447306,-639.54,0.00010999,2]
[333617647,1722287447315,-733.15,0.00010999,2]
[333617648,1722287447324,-639.54,0.00010999,2]
[333617649,1722287447333,-733.15,0.00010999,2]
[333617650,1722287447343,-733.15,0.00010999,2]
[333617651,1722287447352,-687.29,0.00010999,2]
[333617652,1722287447361,-733.15,0.00010999,2]
[333617653,1722287447371,-639.61948661,0.00010999,2]
[333617654,1722287447380,-687.29,0.00010999,2]
[333617655,1722287447389,-733.36,0.00010999,2]
[333617656,1722287447398,-687.29,0.00010999,2]
[333617657,1722287447408,-687.29,0.00010999,2]
[333617658,1722287447416,-687.29,0.00010999,2]
[333617659,1722287447425,-770.37,0.00010999,2]
[333617660,1722287447434,-687.29,0.00010999,2]
[333617661,1722287447443,-770.37,0.00010999,2]
[333617662,1722287447453,-687.29,0.00010999,2]
[333617663,1722287447462,-770.37,0.00010999,2]
[333617664,1722287447471,-687.29,0.00010999,2]
[333617665,1722287447480,-770.37,0.00010999,2]
[333617666,1722287447490,-687.29,0.00010999,2]
[333617667,1722287447499,-770.37,0.00010999,2]
[333617668,1722287447508,-770.37,0.00010999,2]
[333617669,1722287447517,-770.37,0.00010999,2]
[333617670,1722287447526,-687.29,0.00010999,2]
[333617671,1722287447535,-770.37,0.00010999,2]
[333617672,1722287447545,-687.29,0.00010999,2]
[333617673,1722287447554,-770.37,0.00010999,2]
[333617674,1722287447563,-687.29,0.00010999,2]
[333617675,1722287447573,-687.29,0.00010999,2]
[333617676,1722287447582,-770.37,0.00010999,2]
[333617677,1722287447591,-687.29,0.00010999,2]
[333617678,1722287447600,-687.29,0.00010999,2]
[333617679,1722287447610,-770.37,0.00010999,2]
[333617680,1722287447620,-687.29,0.00010999,2]
[333617681,1722287447629,-770.37,0.00010999,2]
[333617682,1722287447638,-687.29,0.00010999,2]
[333617683,1722287447647,-770.37,0.00010999,2]
[333617684,1722287447656,-687.29,0.00010999,2]
[333617685,1722287447666,-770.37,0.00010999,2]
[333617686,1722287447675,-687.29,0.00010999,2]
[333617687,1722287447684,-770.37,0.00010999,2]
[333617688,1722287447697,-687.40822734,0.00010999,2]
[333617689,1722287447706,-403554.29915837,0.00011,2]
[333617690,1722287447715,-575144.22397208,0.00011,2]
[333617694,1722287447941,-7266.08921481,0.00011,2]
[333617695,1722287447958,-442.38,0.00010658,2]
[333617696,1722287447967,-7602.6561962,0.00011,2]
[333617697,1722287447982,-3804.36369245,0.00011,2]
[333617698,1722287447994,-384.59479513,0.00011,2]
[333617699,1722287448005,-781.88578096,0.00011,2]
[333617700,1722287448016,-769.22313,0.00011,2]
[333617701,1722287448027,-734.70866164,0.00011,2]
[333617702,1722287448039,-2866.98521008,0.00011,2]
[333617703,1722287448052,-340.43496299,0.00011,2]
[333617704,1722287448075,-442.38,0.0001068,2]
[333617705,1722287448084,-27913.04344949,0.00011,2]
[333617706,1722287448096,-537.63842877,0.00011,2]
[333617707,1722287448108,-335.125,0.00011,2]
[333617708,1722287448211,-442.38,0.0001068,2]
[333617709,1722287448221,-442.38,0.0001068,2]
[333617710,1722287448231,-442.38,0.0001068,2]
[333617711,1722287448240,-442.38,0.0001068,2]
[333617712,1722287448250,-677.23489616,0.00010899,2]
[333617713,1722287448260,-500.18694546,0.00010958,2]
[333617714,1722287448270,-770.37,0.00010999,2]
[333617715,1722287448280,-131103.10408532,0.00011,2]
[333617716,1722287448292,-1588.41784623,0.00011,2]
[333617717,1722287448303,-696.37678912,0.00011,2]
[333617718,1722287448315,-443.23700073,0.00011,2]
[333617719,1722287448327,-848.93073398,0.00011,2]
[333617720,1722287448345,-442.38,0.0001068,2]
[333617721,1722287448354,-1111.52000001,0.00011,2]
[333617722,1722287448374,-1819.11343144,0.00011,2]
[333617723,1722287448385,-260.08778133,0.00011,2]
[333617724,1722287448397,-707.7,0.00011,2]
[333617725,1722287448421,-38471.67015177,0.00011,2]
[333617726,1722287448432,-1634.77398797,0.00011,2]
[333617727,1722287448444,-33584.09699998,0.00011,2]
[333617728,1722287448462,-442.38,0.0001068,2]
[333617729,1722287448472,-82314.99687966,0.00011,2]
[333617730,1722287448483,-517.3092,0.00011,2]
[333617731,1722287448494,-1349.4,0.00011,2]
[333617732,1722287449100,-442.38,0.0001068,2]
[333617733,1722287449110,-442.38,0.0001068,2]
[333617734,1722287449120,-442.38,0.0001068,2]
[333617735,1722287449130,-442.38,0.0001068,2]
[333617736,1722287449140,-442.38,0.0001068,2]
[333617737,1722287449149,-442.38,0.0001068,2]
[333617738,1722287449159,-442.38,0.0001069,2]
[333617739,1722287449168,-500.0,0.00010958,2]
[333617740,1722287449178,-500.0,0.00010958,2]
[333617741,1722287449188,-770.37,0.00010999,2]
[333617742,1722287449197,-770.37,0.00010999,2]
[333617743,1722287449207,-770.37,0.00010999,2]
[333617744,1722287449216,-393700.76891999,0.00011,2]
[333617745,1722287449228,-9947.1889316,0.00011,2]
[333617746,1722287449254,-770.51,0.00010999,2]
[333617747,1722287449264,-980.40473499,0.00011,2]
[333617748,1722287449275,-492.798201,0.00011,2]
[333617749,1722287449288,-405.65652858,0.00011,2]
[333617750,1722287449299,-268.77602007,0.00011,2]
[333617751,1722287449311,-341.69180987,0.00011,2]
[333617752,1722287449324,-668.32088581,0.00011,2]
[333617753,1722287449336,-9992.98876922,0.00011,2]
[333617754,1722287449347,-1256.4,0.00011,2]
[333617755,1722287449359,-396.11489439,0.00011,2]
[333617756,1722287449371,-791.68781801,0.00011,2]
[333617757,1722287449382,-14710.47376485,0.00011,2]
[333617758,1722287449394,-451.88977681,0.00011,2]
[333617759,1722287449405,-20515.28908705,0.00011,2]
[333617760,1722287449417,-729.16451153,0.00011,2]
[333617761,1722287449428,-681.83583395,0.00011,2]
[333617762,1722287449567,-406.66821803,0.00010899,2]
[333617763,1722287449578,-270.56667813,0.00010899,2]
[333617764,1722287449588,-70916.11691419,0.00011,2]
[333617765,1722287449605,-521799.17283497,0.00011,2]
[333617766,1722287449617,-2644.52968094,0.00011,2]
[333617767,1722287449629,-450.59466083,0.00011,2]
[333617768,1722287449641,-1184.13996,0.00011,2]
[333617769,1722287449653,-304.97,0.00011,2]
[333617770,1722287449665,-9325.65345957,0.00011,2]
[333617771,1722287449676,-719.32993612,0.00011,2]
[333617772,1722287449688,-1760.15439569,0.00011,2]
[333617773,1722287449703,-6083.44213631,0.00011,2]
[333617774,1722287449715,-1265.18101471,0.00011,2]
[333617775,1722287449727,-439.48896357,0.00011,2]
[333617776,1722287449740,-1532.24105838,0.00011,2]
[333617777,1722287449752,-281.0,0.00011,2]
[333617778,1722287449764,-835.97661551,0.00011,2]
[333617779,1722287449778,-240559.01434942,0.00011,2]
[333617780,1722287449791,-650505.95038424,0.00011,2]
[333617781,1722287449803,-3399.39625553,0.00011,2]
[333617782,1722287449815,-29430.03476017,0.00011,2]
[333617783,1722287449827,-429.75631163,0.00011,2]
[333617784,1722287449838,-408.48752001,0.00011,2]
[333617785,1722287449850,-629.27928532,0.00011,2]
[333617786,1722287449862,-882.1746128,0.00011,2]
[333617787,1722287449873,-3261.60154885,0.00011,2]
[333617788,1722287449885,-3373.55,0.00011,2]
[333617789,1722287449897,-12006.86003465,0.00011,2]
[333617790,1722287449908,-622.22852932,0.00011,2]
[333617791,1722287449920,-6742.0,0.00011,2]
[333617793,1722287596638,500.0,0.0002697,120]
[333617794,1722287600769,500.0,0.0002561,120]
[333617795,1722287643995,800.0,0.00026959,120]
[333617796,1722287703800,800.0,0.00026959,120]
[333617802,1722287979352,1000.0,0.00027,120]
[333617803,1722288002077,1000.0,0.00025,60]
[333617816,1722288632274,-909.25,8.219e-05,2]
[333617817,1722288632283,-250.0,9.913e-05,2]
[333617818,1722288632293,-216.0,9.932e-05,2]
[333617819,1722288632303,-784.0,9.958e-05,2]
[333617820,1722288632312,-478.92341103,9.965e-05,2]
[333617821,1722288632338,-3351.46930057,9.965e-05,2]
[333617822,1722288632349,-2124.4372884,9.965e-05,2]
[333617823,1722288632358,-1664.160593,0.00010366,2]
[333617824,1722288632368,-1449.45668,0.00010419,2]
[333617825,1722288632377,-909.25,0.00010474,2]
[333617826,1722288632386,-3212.899997,0.00010497,2]
[333617827,1722288632396,-834.48646689,0.000105,3]
[333617828,1722288632405,-1184.27,0.0001058,2]
[333617829,1722288632414,-150.0,0.00010589,2]
[333617830,1722288632424,-1134.59400002,0.0001059,2]
[333617831,1722288632433,-11736.44497469,0.0001059,2]
[333617832,1722288632444,-1926.93036806,0.0001059,2]
[333617833,1722288632459,-1684.86444504,0.0001059,2]
[333617834,1722288632470,-2081.08675534,0.0001059,2]
[333617835,1722288632524,-530.0,0.0001059,2]
[333617836,1722288632535,-1280.56006859,0.0001059,2]
[333617837,1722288632590,-1180.85005427,0.0001059,2]
[333617838,1722288632601,-359.16532702,0.0001059,2]
[333617839,1722288632655,-7192.30240699,0.0001059,2]
[333617841,1722288632664,-4662.42,0.0001059,2]
[333617843,1722288632674,-2086.6959,0.00010668,2]
[333617845,1722288632682,-333.28709,0.000108,2]
[333617847,1722288632691,-10845.32404199,0.0001088,2]
[333617849,1722288632700,-1184.27,0.00010889,2]
[333617851,1722288632709,-2000.2606,0.00010894,2]
[333617853,1722288632718,-7500.0,0.00010899,2]
[333617855,1722288632727,-747.98811257,0.00010899,2]
[333617856,1722288632736,-203.17046892,0.00010899,2]
[333617858,1722288632744,-203.17046884,0.00010899,2]
[333617860,1722288632753,-203.17046884,0.00010899,2]
[333617861,1722288632762,-203.17046884,0.00010899,2]
[333617863,1722288632771,-203.17046884,0.00010899,2]
[333617865,1722288632780,-203.17046884,0.00010899,2]
[333617867,1722288632789,-203.17046884,0.00010899,2]
[333617869,1722288632798,-203.17046884,0.00010899,2]
[333617871,1722288632807,-203.17046884,0.00010899,2]
[333617873,1722288632816,-203.17046884,0.000109,2]
[333617875,1722288632826,-500.0,0.00010911,2]
[333617876,1722288632835,-500.0,0.00010912,2]
[333617878,1722288632844,-1184.27,0.00010948,2]
[333617880,1722288632854,-1184.27,0.00010948,2]
[333617882,1722288632863,-1184.27,0.00010948,2]
[333617884,1722288632872,-208.71520376,0.00010958,2]
[333617886,1722288632882,-227.45699027,0.00010958,2]
[333617888,1722288632891,-365.64,0.00010958,2]
[333617890,1722288632900,-506.6284412,0.00010958,2]
[333617892,1722288632908,-500.0,0.00010958,2]
[333617893,1722288632917,-500.0,0.00010958,2]
[333617895,1722288632927,-500.0,0.00010958,2]
[333617897,1722288632936,-500.0,0.00010958,2]
[333617899,1722288632945,-500.0,0.00010958,2]
[333617901,1722288632955,-418.22507913,0.00010958,2]
[333617902,1722288632964,-500.0,0.00010958,2]
[333617903,1722288632973,-504.15,0.00010958,2]
[333617904,1722288632983,-500.0,0.00010958,2]
[333617905,1722288632992,-500.0,0.00010958,2]
[333617906,1722288633001,-501.12,0.00010958,2]
[333617907,1722288633010,-500.0,0.00010958,2]
[333617908,1722288633020,-500.0,0.00010958,2]
[333617909,1722288633029,-500.0,0.00010958,2]
[333617910,1722288633039,-500.0,0.00010958,2]
[333617911,1722288633048,-500.0,0.00010958,2]
[333617912,1722288633057,-500.0,0.00010958,2]
[333617913,1722288633067,-500.0,0.00010958,2]
[333617914,1722288633076,-500.0,0.00010958,2]
[333617915,1722288633086,-500.0,0.00010958,2]
[333617916,1722288633096,-500.0,0.00010958,2]
[333617917,1722288633105,-500.0,0.00010958,2]
[333617918,1722288633115,-500.0,0.00010958,2]
[333617919,1722288633124,-500.0,0.00010958,2]
[333617920,1722288633134,-500.0,0.00010958,2]
[333617921,1722288633144,-500.0,0.00010958,2]
[333617922,1722288633153,-500.0,0.00010958,2]
[333617923,1722288633163,-500.0,0.00010958,2]
[333617924,1722288633174,-260.92,0.00010958,2]
[333617925,1722288633184,-500.0,0.00010958,2]
[333617926,1722288633193,-443.39325657,0.00010958,2]
[333617927,1722288633202,-500.0,0.00010958,2]
[333617928,1722288633212,-500.0,0.00010958,2]
[333617929,1722288633221,-622.31024448,0.00010958,2]
[333617930,1722288633231,-413.26,0.00010958,2]
[333617931,1722288633241,-500.0,0.00010958,2]
[333617932,1722288633250,-1411.11,0.00010958,2]
[333617933,1722288633260,-1411.11,0.00010958,2]
[333617934,1722288633270,-1411.11,0.00010958,2]
[333617935,1722288633280,-500.0,0.00010958,2]
[333617936,1722288633290,-500.0,0.00010958,2]
[333617937,1722288633302,-500.0,0.00010958,2]
[333617938,1722288633317,-500.0,0.00010958,2]
[333617939,1722288633327,-500.0,0.00010958,2]
[333617940,1722288633336,-500.0,0.00010958,2]
[333617941,1722288633345,-500.0,0.00010958,2]
[333617942,1722288633355,-500.0,0.00010958,2]
[333617943,1722288633364,-459.26251194,0.00010958,2]
[333617944,1722288633373,-500.0,0.00010958,2]
[333617945,1722288633383,-500.0,0.00010958,2]
[333617946,1722288633392,-341.55,0.00010958,2]
[333617947,1722288633402,-500.0,0.00010958,2]
[333617948,1722288633412,-500.0,0.00010958,2]
[333617949,1722288633421,-500.0,0.00010958,2]
[333617950,1722288633430,-500.0,0.00010958,2]
[333617951,1722288633440,-500.0,0.00010958,2]
[333617952,1722288633449,-500.0,0.00010958,2]
[333617953,1722288633458,-500.0,0.00010958,2]
[333617954,1722288633468,-500.0,0.00010958,2]
[333617955,1722288633477,-500.0,0.00010958,2]
[333617956,1722288633487,-500.0,0.00010958,2]
[333617957,1722288633496,-500.0,0.00010958,2]
[333617958,1722288633505,-500.0,0.00010958,2]
[333617959,1722288633515,-504.35916035,0.00010958,2]
[333617960,1722288633526,-500.0,0.00010958,2]
[333617961,1722288633535,-500.0,0.00010958,2]
[333617962,1722288633545,-500.0,0.00010958,2]
[333617963,1722288633557,-500.0,0.00010958,2]
[333617964,1722288633566,-500.0,0.00010958,2]
[333617965,1722288633577,-500.0,0.00010958,2]
[333617966,1722288633587,-500.0,0.00010958,2]
[333617967,1722288633597,-500.0,0.00010958,2]
[333617968,1722288633607,-500.0,0.00010958,2]
[333617969,1722288633616,-500.0,0.00010958,2]
[333617970,1722288633627,-500.0,0.00010958,2]
[333617971,1722288633637,-500.0,0.00010958,2]
[333617972,1722288633646,-500.0,0.00010958,2]
[333617973,1722288633656,-500.0,0.00010958,2]
[333617974,1722288633666,-250.0,0.00010959,2]
[333617975,1722288633675,-217.26,0.00010968,2]
[333617976,1722288633684,-500.0,0.00010968,2]
[333617977,1722288633693,-150.0,0.00010969,2]
[333617978,1722288633703,-523.215,0.00010969,2]
[333617979,1722288633715,-803.376,0.00010969,2]
[333617980,1722288633725,-1370.0,0.00010969,2]
[333617981,1722288633734,-7434.1,0.00010969,2]
[333617982,1722288633744,-1184.27,0.00010983,2]
[333617983,1722288633754,-1184.27,0.00010988,2]
[333617984,1722288633763,-1184.27,0.00010988,2]
[333617985,1722288633773,-1184.27,0.00010989,2]
[333617986,1722288633783,-1184.27,0.00010989,2]
[333617987,1722288633792,-500.0,0.00010993,2]
[333617988,1722288633801,-500.0,0.00010993,2]
[333617989,1722288633811,-500.0,0.00010993,2]
[333617990,1722288633820,-500.0,0.00010993,2]
[333617991,1722288633830,-500.0,0.00010993,2]
[333617992,1722288633839,-500.0,0.00010993,2]
[333617993,1722288633848,-292.25,0.00010993,2]
[333617994,1722288633859,-500.0,0.00010993,2]
[333617995,1722288633868,-173.49,0.00010993,2]
[333617996,1722288633877,-500.0,0.00010993,2]
[333617997,1722288633887,-500.0,0.00010993,2]
[333617998,1722288633895,-500.0,0.00010993,2]
[333617999,1722288633904,-500.0,0.00010993,2]
[333618000,1722288633914,-500.0,0.00010993,2]
[333618001,1722288633924,-500.0,0.00010993,2]
[333618002,1722288633933,-500.0,0.00010993,2]
[333618003,1722288633943,-500.0,0.00010993,2]
[333618004,1722288633952,-513.93,0.00010993,2]
[333618005,1722288633962,-500.0,0.00010993,2]
[333618006,1722288633971,-500.0,0.00010993,2]
[333618007,1722288633979,-500.0,0.00010993,2]
[333618008,1722288633989,-500.0,0.00010993,2]
[333618009,1722288633998,-541.46,0.00010993,2]
[333618010,1722288634007,-500.0,0.00010993,2]
[333618011,1722288634016,-1411.11,0.00010997,2]
[333618012,1722288634025,-500.0,0.00010997,2]
[333618013,1722288634035,-500.0,0.00010997,2]
[333618014,1722288634044,-500.0,0.00010998,2]
[333618015,1722288634054,-500.0,0.00010998,2]
[333618016,1722288634063,-500.0,0.00010998,2]
[333618017,1722288634073,-500.0,0.00010998,2]
[333618018,1722288634082,-500.6545172,0.00010998,2]
[333618019,1722288634092,-500.0,0.00010998,2]
[333618020,1722288634101,-503.12685841,0.00010998,2]
[333618021,1722288634110,-500.0,0.00010998,2]
[333618022,1722288634120,-563.5,0.00010998,2]
[333618023,1722288634129,-500.0,0.00010998,2]
[333618024,1722288634138,-500.0,0.00010998,2]
[333618025,1722288634147,-500.0,0.00010998,2]
[333618026,1722288634156,-500.0,0.00010998,2]
[333618027,1722288634166,-500.0,0.00010998,2]
[333618028,1722288634179,-500.0,0.00010998,2]
[333618029,1722288634189,-500.0,0.00010998,2]
[333618030,1722288634198,-500.0,0.00010998,2]
[333618031,1722288634208,-500.0,0.00010998,2]
[333618032,1722288634219,-500.0,0.00010998,2]
[333618033,1722288634228,-500.0,0.00010998,2]
[333618034,1722288634238,-500.0,0.00010998,2]
[333618035,1722288634250,-500.0,0.00010998,2]
[333618036,1722288634260,-500.0,0.00010998,2]
[333618037,1722288634269,-500.0,0.00010998,2]